[Event "*** Titled Tuesday Blitz"]
[Site "Chess.com"]
[Date "2020.11.24"]
[Round "8"]
[White "vova-79"]
[Black "lucachess49"]
[Result "1/2-1/2"]
[WhiteElo "2483"]
[BlackElo "2345"]
[TimeControl "180+1"]
[EndTime "11:47:28 PST"]
[Termination "Game drawn by repetition"]

1. d4 {[%clk 0:03:00.9]} 1... Nf6 {[%clk 0:02:47.4]} 2. c4 {[%clk 0:03:00.5]}
2... e6 {[%clk 0:02:43.9]} 3. Nc3 {[%clk 0:02:59.9]} 3... Bb4 {[%clk 0:02:38.1]}
4. e3 {[%clk 0:02:59.6]} 4... O-O {[%clk 0:02:34.1]} 5. Ne2 {[%clk 0:02:58.7]}
5... Re8 {[%clk 0:02:29.3]} 6. a3 {[%clk 0:02:58.9]} 6... Bf8 {[%clk 0:02:17.8]}
7. Ng3 {[%clk 0:02:58.7]} 7... d6 {[%clk 0:02:04.5]} 8. Be2 {[%clk 0:02:58.5]}
8... Nbd7 {[%clk 0:02:01.7]} 9. O-O {[%clk 0:02:58]} 9... b6 {[%clk 0:02:02]}
10. Bf3 {[%clk 0:02:56.2]} 10... Rb8 {[%clk 0:02:02]} 11. e4 {[%clk 0:02:53.4]}
11... e5 {[%clk 0:02:00.7]} 12. d5 {[%clk 0:02:51.1]} 12... g6 {[%clk 0:01:50]}
13. b4 {[%clk 0:02:47.6]} 13... h5 {[%clk 0:01:47.7]} 14. h3 {[%clk 0:02:37.9]}
14... Be7 {[%clk 0:01:29.9]} 15. Be3 {[%clk 0:02:34.8]} 15... h4 {[%clk
0:01:24.6]} 16. Nge2 {[%clk 0:02:32.4]} 16... Nh7 {[%clk 0:01:25]} 17. Bg4
{[%clk 0:02:22.1]} 17... Bg5 {[%clk 0:01:24.6]} 18. Qd2 {[%clk 0:02:13.1]} 18...
Bxe3 {[%clk 0:01:23.9]} 19. fxe3 {[%clk 0:02:12.5]} 19... Qg5 {[%clk 0:01:20.8]}
20. Nb5 {[%clk 0:02:07.4]} 20... Rb7 {[%clk 0:01:16]} 21. Rab1 {[%clk 0:01:43]}
21... a6 {[%clk 0:01:12.8]} 22. Nbc3 {[%clk 0:01:42.7]} 22... Rb8 {[%clk
0:01:06.1]} 23. Kh1 {[%clk 0:01:30.1]} 23... Rf8 {[%clk 0:00:28.9]} 24. Ng1
{[%clk 0:00:55.4]} 24... f5 {[%clk 0:00:19.8]} 25. exf5 {[%clk 0:00:55.4]} 25...
gxf5 {[%clk 0:00:19.4]} 26. Be2 {[%clk 0:00:55.9]} 26... Ndf6 {[%clk 0:00:19.2]}
27. Nf3 {[%clk 0:00:53.3]} 27... Qh6 {[%clk 0:00:19]} 28. c5 {[%clk 0:00:53.7]}
28... bxc5 {[%clk 0:00:17.5]} 29. bxc5 {[%clk 0:00:53.1]} 29... Rxb1 {[%clk
0:00:17.7]} 30. Rxb1 {[%clk 0:00:52.9]} 30... Nh5 {[%clk 0:00:09.4]} 31. e4
{[%clk 0:00:49.8]} 31... Ng3+ {[%clk 0:00:08.5]} 32. Kh2 {[%clk 0:00:47.8]}
32... Qxd2 {[%clk 0:00:06.8]} 33. Nxd2 {[%clk 0:00:46.8]} 33... Ng5 {[%clk
0:00:06.8]} 34. cxd6 {[%clk 0:00:43.4]} 34... cxd6 {[%clk 0:00:06.8]} 35. Bf3
{[%clk 0:00:39.3]} 35... Nxf3+ {[%clk 0:00:04.8]} 36. Nxf3 {[%clk 0:00:35.7]}
36... fxe4 {[%clk 0:00:04.6]} 37. Nxh4 {[%clk 0:00:35.5]} 37... Nf1+ {[%clk
0:00:04.6]} 38. Kg1 {[%clk 0:00:34.5]} 38... Nd2 {[%clk 0:00:04.2]} 39. Rb2
{[%clk 0:00:27.3]} 39... Nc4 {[%clk 0:00:04]} 40. Re2 {[%clk 0:00:26]} 40... e3
{[%clk 0:00:04.1]} 41. Nd1 {[%clk 0:00:25]} 41... Bb7 {[%clk 0:00:03.5]} 42.
Nxe3 {[%clk 0:00:24.5]} 42... Nxe3 {[%clk 0:00:02.5]} 43. Rxe3 {[%clk
0:00:25.4]} 43... Rc8 {[%clk 0:00:01.8]} 44. Nf5 {[%clk 0:00:24.1]} 44... Rc1+
{[%clk 0:00:01.5]} 45. Kh2 {[%clk 0:00:22]} 45... Bxd5 {[%clk 0:00:02.1]} 46.
Nxd6 {[%clk 0:00:20.7]} 46... Rc2 {[%clk 0:00:01.4]} 47. Ne4 {[%clk 0:00:18.5]}
47... Kg7 {[%clk 0:00:02]} 48. Kg3 {[%clk 0:00:18.5]} 48... Ra2 {[%clk
0:00:02.3]} 49. h4 {[%clk 0:00:16.8]} 49... Bxe4 {[%clk 0:00:02.5]} 50. Rxe4
{[%clk 0:00:16.6]} 50... Rxa3+ {[%clk 0:00:03.4]} 51. Kg4 {[%clk 0:00:17.1]}
51... Kf6 {[%clk 0:00:04]} 52. h5 {[%clk 0:00:16.1]} 52... Ra1 {[%clk
0:00:04.6]} 53. Kg3 {[%clk 0:00:12.8]} 53... Rh1 {[%clk 0:00:04.5]} 54. Ra4
{[%clk 0:00:12.3]} 54... Rxh5 {[%clk 0:00:04.2]} 55. Rxa6+ {[%clk 0:00:12.2]}
55... Kf5 {[%clk 0:00:04.8]} 56. Kf3 {[%clk 0:00:12]} 56... Rh1 {[%clk
0:00:04.7]} 57. Ra8 {[%clk 0:00:09.9]} 57... Rf1+ {[%clk 0:00:04.3]} 58. Ke2
{[%clk 0:00:09.8]} 58... Rb1 {[%clk 0:00:04.5]} 59. Ra2 {[%clk 0:00:08.2]} 59...
Rb3 {[%clk 0:00:03.8]} 60. Rc2 {[%clk 0:00:07.2]} 60... e4 {[%clk 0:00:04]} 61.
Rc8 {[%clk 0:00:06.4]} 61... Kf4 {[%clk 0:00:04]} 62. Rf8+ {[%clk 0:00:05.5]}
62... Ke5 {[%clk 0:00:04.6]} 63. Re8+ {[%clk 0:00:05.2]} 63... Kf4 {[%clk
0:00:05.2]} 64. Rf8+ {[%clk 0:00:05.2]} 64... Ke5 {[%clk 0:00:05.6]} 65. Re8+
{[%clk 0:00:05.1]} 65... Kf4 {[%clk 0:00:06.2]} 66. Rf8+ {[%clk 0:00:05.2]}
1/2-1/2

[Event "*** Titled Tuesday Blitz"]
[Site "Chess.com"]
[Date "2020.11.24"]
[Round "8"]
[White "PriSachu"]
[Black "AbdAlAgathos"]
[Result "1-0"]
[WhiteElo "2538"]
[BlackElo "2377"]
[TimeControl "180+1"]
[EndTime "11:47:29 PST"]
[Termination "PriSachu won by resignation"]

1. e4 {[%clk 0:03:00.5]} 1... e6 {[%clk 0:02:57.8]} 2. Bb5 {[%clk 0:02:56.9]}
2... c6 {[%clk 0:02:56.7]} 3. Ba4 {[%clk 0:02:56.4]} 3... b5 {[%clk 0:02:54.3]}
4. Bb3 {[%clk 0:02:56.2]} 4... d5 {[%clk 0:02:49.2]} 5. e5 {[%clk 0:02:52.2]}
5... c5 {[%clk 0:02:46]} 6. c3 {[%clk 0:02:51.5]} 6... Bb7 {[%clk 0:02:33.3]} 7.
Nf3 {[%clk 0:02:50.5]} 7... Ne7 {[%clk 0:02:24.5]} 8. O-O {[%clk 0:02:50.3]}
8... Ng6 {[%clk 0:02:23.3]} 9. Re1 {[%clk 0:02:43.1]} 9... d4 {[%clk 0:02:13.4]}
10. d3 {[%clk 0:02:37]} 10... Nd7 {[%clk 0:01:59.1]} 11. cxd4 {[%clk 0:02:29.8]}
11... cxd4 {[%clk 0:01:52.1]} 12. Nxd4 {[%clk 0:02:15]} 12... Qb6 {[%clk
0:01:25.6]} 13. Nf3 {[%clk 0:01:52.3]} 13... Bb4 {[%clk 0:01:06.7]} 14. Bd2
{[%clk 0:01:39.1]} 14... Bxd2 {[%clk 0:01:03.9]} 15. Nbxd2 {[%clk 0:01:40]}
15... O-O {[%clk 0:01:02.8]} 16. Qe2 {[%clk 0:01:25.9]} 16... Rfd8 {[%clk
0:00:54.8]} 17. d4 {[%clk 0:01:18.7]} 17... Nb8 {[%clk 0:00:32.9]} 18. Qe3
{[%clk 0:01:05.5]} 18... Nc6 {[%clk 0:00:30.3]} 19. d5 {[%clk 0:00:54.9]} 19...
Qxe3 {[%clk 0:00:29.5]} 20. Rxe3 {[%clk 0:00:54.8]} 20... exd5 {[%clk
0:00:29.5]} 21. e6 {[%clk 0:00:54.6]} 21... fxe6 {[%clk 0:00:28.9]} 22. Rxe6
{[%clk 0:00:53.3]} 22... Nf4 {[%clk 0:00:26.9]} 23. Ree1 {[%clk 0:00:48.1]}
23... Nd3 {[%clk 0:00:23.9]} 24. Re6 {[%clk 0:00:44.9]} 24... Nxb2 {[%clk
0:00:21.6]} 25. Rc1 {[%clk 0:00:41.2]} 25... Nc4 {[%clk 0:00:21.4]} 26. a4
{[%clk 0:00:37]} 26... a6 {[%clk 0:00:21.1]} 27. Nf1 {[%clk 0:00:28]} 27... Re8
{[%clk 0:00:19.7]} 28. Rce1 {[%clk 0:00:26.8]} 28... Rxe6 {[%clk 0:00:19.3]} 29.
Rxe6 {[%clk 0:00:27.7]} 29... N6a5 {[%clk 0:00:18.7]} 30. Bc2 {[%clk 0:00:23.2]}
30... b4 {[%clk 0:00:17.9]} 31. Nd4 {[%clk 0:00:23.2]} 31... Rd8 {[%clk
0:00:16]} 32. Ne3 {[%clk 0:00:23.2]} 32... Nxe3 {[%clk 0:00:15.3]} 33. fxe3
{[%clk 0:00:19]} 33... Nc4 {[%clk 0:00:16.2]} 34. Bb3 {[%clk 0:00:18.8]} 34...
Nd2 {[%clk 0:00:14]} 35. Kf2 {[%clk 0:00:14.7]} 35... Ne4+ {[%clk 0:00:13.5]}
36. Ke2 {[%clk 0:00:13.6]} 36... Kf8 {[%clk 0:00:13]} 37. Rb6 {[%clk 0:00:13.2]}
37... Rb8 {[%clk 0:00:12.3]} 38. Nc6 {[%clk 0:00:10.2]} 38... Bxc6 {[%clk
0:00:12.5]} 39. Rxb8+ {[%clk 0:00:09.9]} 39... Ke7 {[%clk 0:00:11.8]} 40. Rxb4
{[%clk 0:00:09.5]} 40... Kd6 {[%clk 0:00:11.9]} 41. Rb6 {[%clk 0:00:07.9]} 41...
Kc5 {[%clk 0:00:10.9]} 42. Rxa6 {[%clk 0:00:07.6]} 42... g5 {[%clk 0:00:08.6]}
43. Bc2 {[%clk 0:00:07.7]} 43... Nc3+ {[%clk 0:00:06.5]} 44. Kd2 {[%clk
0:00:06.6]} 44... Na2 {[%clk 0:00:06.7]} 45. Ra7 {[%clk 0:00:06.5]} 45... Nb4
{[%clk 0:00:06.2]} 46. Rg7 {[%clk 0:00:06.7]} 46... h6 {[%clk 0:00:05.7]} 47.
Rg6 {[%clk 0:00:06.2]} 47... Nxc2 {[%clk 0:00:05.7]} 48. Kxc2 {[%clk 0:00:07.1]}
48... Bxa4+ {[%clk 0:00:06.2]} 49. Kc3 {[%clk 0:00:06.5]} 49... Bd7 {[%clk
0:00:04.7]} 50. Rxh6 {[%clk 0:00:06.6]} 50... Bf5 {[%clk 0:00:03.9]} 51. Rh5
{[%clk 0:00:07]} 51... Be4 {[%clk 0:00:04.2]} 52. Rxg5 {[%clk 0:00:07.4]} 52...
Kd6 {[%clk 0:00:05]} 53. h4 {[%clk 0:00:07.7]} 53... Ke6 {[%clk 0:00:04.8]} 54.
Kd4 {[%clk 0:00:08.2]} 54... Kf6 {[%clk 0:00:05.7]} 55. Re5 {[%clk 0:00:08.6]}
55... Bxg2 {[%clk 0:00:05.6]} 56. Rg5 {[%clk 0:00:08.4]} 56... Be4 {[%clk
0:00:04.1]} 57. Rxd5 {[%clk 0:00:09.3]} 57... Bh7 {[%clk 0:00:02.8]} 58. Re5
{[%clk 0:00:09.2]} 58... Kg7 {[%clk 0:00:03.7]} 59. Rg5+ {[%clk 0:00:09.5]}
59... Kf6 {[%clk 0:00:03.7]} 60. e4 {[%clk 0:00:10.4]} 60... Kf7 {[%clk
0:00:03.7]} 61. e5 {[%clk 0:00:11.3]} 61... Kf8 {[%clk 0:00:03.9]} 62. Kc5
{[%clk 0:00:11.2]} 62... Bg8 {[%clk 0:00:04.8]} 63. Kd6 {[%clk 0:00:11.8]} 63...
Bf7 {[%clk 0:00:05.1]} 64. e6 {[%clk 0:00:11.9]} 64... Be8 {[%clk 0:00:06]} 65.
e7+ {[%clk 0:00:10.4]} 65... Kf7 {[%clk 0:00:06.9]} 66. h5 {[%clk 0:00:10]}
66... Kf6 {[%clk 0:00:06.8]} 67. h6 {[%clk 0:00:09.2]} 67... Kxg5 {[%clk
0:00:04.5]} 68. h7 {[%clk 0:00:09.4]} 68... Kh6 {[%clk 0:00:04.2]} 69. h8=Q+
{[%clk 0:00:09.4]} 69... Kg6 {[%clk 0:00:04.2]} 70. Qxe8+ {[%clk 0:00:09.8]}
70... Kf6 {[%clk 0:00:05.1]} 71. Qf8+ {[%clk 0:00:10.1]} 1-0

[Event "*** Titled Tuesday Blitz"]
[Site "Chess.com"]
[Date "2020.11.24"]
[Round "8"]
[White "HaryKane"]
[Black "geordie_derraugh"]
[Result "0-1"]
[WhiteElo "2578"]
[BlackElo "2483"]
[TimeControl "180+1"]
[EndTime "11:47:35 PST"]
[Termination "geordie_derraugh won by resignation"]

1. e4 {[%clk 0:03:00.9]} 1... c5 {[%clk 0:02:59.6]} 2. Nf3 {[%clk 0:03:00.8]}
2... e6 {[%clk 0:02:59.9]} 3. d4 {[%clk 0:03:01.4]} 3... cxd4 {[%clk 0:03:00.1]}
4. Nxd4 {[%clk 0:03:02.3]} 4... Nc6 {[%clk 0:03:00.5]} 5. Nc3 {[%clk 0:03:02.7]}
5... Qc7 {[%clk 0:03:00.5]} 6. Nxc6 {[%clk 0:03:02.1]} 6... bxc6 {[%clk
0:02:59.7]} 7. Bd3 {[%clk 0:03:03]} 7... Nf6 {[%clk 0:02:58.8]} 8. O-O {[%clk
0:03:01.4]} 8... d5 {[%clk 0:02:58.1]} 9. Re1 {[%clk 0:03:00]} 9... Be7 {[%clk
0:02:57.8]} 10. e5 {[%clk 0:02:54.8]} 10... Nd7 {[%clk 0:02:57.8]} 11. Qg4
{[%clk 0:02:53.6]} 11... g6 {[%clk 0:02:43.4]} 12. Bf4 {[%clk 0:02:49]} 12...
Rb8 {[%clk 0:02:38.2]} 13. Rab1 {[%clk 0:02:48.4]} 13... h5 {[%clk 0:02:27.5]}
14. Qg3 {[%clk 0:02:44.5]} 14... h4 {[%clk 0:02:22.6]} 15. Qg4 {[%clk
0:02:35.3]} 15... h3 {[%clk 0:02:07]} 16. g3 {[%clk 0:02:35.2]} 16... g5 {[%clk
0:01:23.7]} 17. Bxg5 {[%clk 0:02:08.1]} 17... Rg8 {[%clk 0:01:23.8]} 18. f4
{[%clk 0:01:58.3]} 18... Bxg5 {[%clk 0:01:23.6]} 19. fxg5 {[%clk 0:01:58.6]}
19... Nxe5 {[%clk 0:01:24]} 20. Qf4 {[%clk 0:01:54.1]} 20... Rxg5 {[%clk
0:01:24.1]} 21. Kh1 {[%clk 0:01:49.4]} 21... f6 {[%clk 0:00:20.6]} 22. Qxf6
{[%clk 0:01:39.9]} 22... Nxd3 {[%clk 0:00:20.9]} 23. Qxg5 {[%clk 0:01:08]} 23...
Nxe1 {[%clk 0:00:20.4]} 24. Qg8+ {[%clk 0:01:08.4]} 24... Kd7 {[%clk 0:00:19.1]}
25. Rxe1 {[%clk 0:01:03.2]} 25... Kd6 {[%clk 0:00:19.5]} 26. Qf8+ {[%clk
0:00:59.2]} 26... Qe7 {[%clk 0:00:18.2]} 27. Ne4+ {[%clk 0:00:56.7]} 27... Kd7
{[%clk 0:00:12.8]} 28. Nc5+ {[%clk 0:00:43.1]} 28... Kd6 {[%clk 0:00:11.2]} 29.
Ne4+ {[%clk 0:00:23.6]} 29... Kd7 {[%clk 0:00:11.3]} 30. Nf6+ {[%clk 0:00:20.7]}
30... Kd6 {[%clk 0:00:11.6]} 31. Qh6 {[%clk 0:00:19.9]} 31... Rxb2 {[%clk
0:00:09.1]} 32. Qf4+ {[%clk 0:00:12]} 32... e5 {[%clk 0:00:08.9]} 33. Qf2 {[%clk
0:00:09.6]} 33... Be6 {[%clk 0:00:06.5]} 34. Rd1 {[%clk 0:00:05]} 34... Rb6
{[%clk 0:00:04.5]} 35. Ne4+ {[%clk 0:00:05]} 35... Kc7 {[%clk 0:00:04.9]} 36.
Nc5 {[%clk 0:00:05.5]} 36... Qd6 {[%clk 0:00:04.5]} 37. Nd3 {[%clk 0:00:05.6]}
37... e4 {[%clk 0:00:04.6]} 38. Nf4 {[%clk 0:00:05.7]} 38... Qe5 {[%clk
0:00:03.9]} 39. a4 {[%clk 0:00:05.9]} 39... e3 {[%clk 0:00:03.8]} 40. Qe2 {[%clk
0:00:06.3]} 40... Qe4+ {[%clk 0:00:04.2]} 41. Kg1 {[%clk 0:00:06.3]} 41... Bf5
{[%clk 0:00:04.1]} 42. c3 {[%clk 0:00:05.9]} 42... Rb3 {[%clk 0:00:03.9]} 43.
Rc1 {[%clk 0:00:03]} 43... Rb1 {[%clk 0:00:03.8]} 44. Qe1 {[%clk 0:00:02.4]}
44... Rxc1 {[%clk 0:00:04]} 45. Qxc1 {[%clk 0:00:03]} 45... e2 {[%clk
0:00:04.6]} 46. Kf2 {[%clk 0:00:03.7]} 46... e1=Q+ {[%clk 0:00:03.4]} 47. Qxe1
{[%clk 0:00:03.2]} 47... Qc2+ {[%clk 0:00:04]} 48. Qe2 {[%clk 0:00:03.3]} 48...
Qxc3 {[%clk 0:00:04.4]} 49. Qe7+ {[%clk 0:00:03.4]} 49... Kb6 {[%clk 0:00:04.7]}
50. Qd8+ {[%clk 0:00:03.9]} 50... Kc5 {[%clk 0:00:04.7]} 51. Qf8+ {[%clk
0:00:03.8]} 51... Kc4 {[%clk 0:00:04.1]} 52. Qxf5 {[%clk 0:00:04.7]} 52... Qd4+
{[%clk 0:00:04.3]} 53. Kf3 {[%clk 0:00:04.4]} 53... Qd1+ {[%clk 0:00:04.3]} 54.
Ne2 {[%clk 0:00:04.1]} 54... Qh1+ {[%clk 0:00:04.2]} 55. Ke3 {[%clk 0:00:03.8]}
55... Qxh2 {[%clk 0:00:04.6]} 56. Qd3+ {[%clk 0:00:03.5]} 56... Kc5 {[%clk
0:00:04.6]} 57. Qd4+ {[%clk 0:00:03.8]} 57... Kd6 {[%clk 0:00:05]} 58. Qf6+
{[%clk 0:00:04.1]} 58... Kc5 {[%clk 0:00:05.3]} 59. Qe7+ {[%clk 0:00:04.3]}
59... Kc4 {[%clk 0:00:05.2]} 60. Qh4+ {[%clk 0:00:03.1]} 60... Kc5 {[%clk
0:00:04.5]} 61. Qd4+ {[%clk 0:00:03.6]} 61... Kd6 {[%clk 0:00:04.7]} 62. Qf4+
{[%clk 0:00:02.8]} 62... Kc5 {[%clk 0:00:05]} 63. Kd3 {[%clk 0:00:03.5]} 63...
Qg2 {[%clk 0:00:04.3]} 64. Qf8+ {[%clk 0:00:03.6]} 64... Kb6 {[%clk 0:00:04.1]}
65. Qb8+ {[%clk 0:00:04]} 65... Ka6 {[%clk 0:00:04.2]} 66. Qc8+ {[%clk 0:00:04]}
66... Kb6 {[%clk 0:00:04.3]} 67. Qb8+ {[%clk 0:00:04.6]} 67... Ka6 {[%clk
0:00:04.8]} 68. Nd4 {[%clk 0:00:04.7]} 68... Qxg3+ {[%clk 0:00:04.3]} 69. Kc2
{[%clk 0:00:05.2]} 69... Qf2+ {[%clk 0:00:04.4]} 70. Kc3 {[%clk 0:00:05.7]}
70... Qe3+ {[%clk 0:00:04.7]} 71. Kc2 {[%clk 0:00:04.3]} 71... Qxd4 {[%clk
0:00:05.2]} 72. Qc8+ {[%clk 0:00:04.9]} 72... Kb6 {[%clk 0:00:05.3]} 73. Qb8+
{[%clk 0:00:05.3]} 73... Kc5 {[%clk 0:00:05.7]} 74. Qxa7+ {[%clk 0:00:05.6]}
74... Kc4 {[%clk 0:00:05.6]} 75. Qa6+ {[%clk 0:00:06.2]} 75... Kb4 {[%clk
0:00:05.6]} 76. Qb7+ {[%clk 0:00:05.2]} 76... Kxa4 {[%clk 0:00:05.3]} 77. Qxc6+
{[%clk 0:00:05.9]} 77... Kb4 {[%clk 0:00:05.7]} 78. Qd6+ {[%clk 0:00:06.3]}
78... Qc5+ {[%clk 0:00:05.4]} 79. Qxc5+ {[%clk 0:00:06.3]} 79... Kxc5 {[%clk
0:00:06.3]} 0-1

[Event "*** Titled Tuesday Blitz"]
[Site "Chess.com"]
[Date "2020.11.24"]
[Round "8"]
[White "temus_galaktionov"]
[Black "yobdc"]
[Result "1-0"]
[WhiteElo "2694"]
[BlackElo "2486"]
[TimeControl "180+1"]
[EndTime "11:47:42 PST"]
[Termination "temus_galaktionov won on time"]

1. d4 {[%clk 0:03:00.9]} 1... Nf6 {[%clk 0:02:57.5]} 2. Nf3 {[%clk 0:02:58.6]}
2... e6 {[%clk 0:02:57.9]} 3. c4 {[%clk 0:02:58.8]} 3... Bb4+ {[%clk 0:02:58]}
4. Nbd2 {[%clk 0:02:58.3]} 4... O-O {[%clk 0:02:57.2]} 5. a3 {[%clk 0:02:58.1]}
5... Be7 {[%clk 0:02:57.4]} 6. e3 {[%clk 0:02:58.1]} 6... b6 {[%clk 0:02:49.9]}
7. b4 {[%clk 0:02:56.2]} 7... a5 {[%clk 0:02:48.8]} 8. b5 {[%clk 0:02:53.7]}
8... Bb7 {[%clk 0:02:48.6]} 9. Bb2 {[%clk 0:02:53.2]} 9... d6 {[%clk 0:02:39.3]}
10. Bd3 {[%clk 0:02:52.8]} 10... Nbd7 {[%clk 0:02:39.3]} 11. O-O {[%clk
0:02:52.5]} 11... Re8 {[%clk 0:02:39.3]} 12. Qc2 {[%clk 0:02:48.4]} 12... Bf8
{[%clk 0:02:38.8]} 13. Rfd1 {[%clk 0:02:38.1]} 13... Qc8 {[%clk 0:02:38.8]} 14.
a4 {[%clk 0:02:35.7]} 14... e5 {[%clk 0:02:33.9]} 15. Bf5 {[%clk 0:02:27.9]}
15... g6 {[%clk 0:02:29.5]} 16. Bh3 {[%clk 0:02:27.5]} 16... e4 {[%clk
0:02:22.5]} 17. Ne1 {[%clk 0:02:22.6]} 17... Qd8 {[%clk 0:02:20.8]} 18. Nb3
{[%clk 0:02:20.3]} 18... Qe7 {[%clk 0:01:59.5]} 19. Qe2 {[%clk 0:02:07.4]} 19...
Bg7 {[%clk 0:01:52.4]} 20. Rac1 {[%clk 0:02:05.5]} 20... Nf8 {[%clk 0:01:47.1]}
21. Nc2 {[%clk 0:01:55.3]} 21... Ne6 {[%clk 0:01:45.1]} 22. d5 {[%clk
0:01:54.6]} 22... Ng5 {[%clk 0:01:44.4]} 23. Kh1 {[%clk 0:01:49.4]} 23... Nxh3
{[%clk 0:01:44.3]} 24. gxh3 {[%clk 0:01:50.3]} 24... Bc8 {[%clk 0:01:35.1]} 25.
Rg1 {[%clk 0:01:49.3]} 25... Bxh3 {[%clk 0:01:33.3]} 26. Rg3 {[%clk 0:01:48.8]}
26... Qd7 {[%clk 0:01:31.5]} 27. Nbd4 {[%clk 0:01:39.2]} 27... h5 {[%clk
0:01:21.4]} 28. f3 {[%clk 0:01:24.6]} 28... exf3 {[%clk 0:01:18.6]} 29. Qxf3
{[%clk 0:01:25.5]} 29... Bg4 {[%clk 0:01:17.3]} 30. Qf4 {[%clk 0:01:25.4]} 30...
Ne4 {[%clk 0:01:08.6]} 31. Rgg1 {[%clk 0:01:14.1]} 31... Be5 {[%clk 0:01:02.9]}
32. Qf1 {[%clk 0:01:13.8]} 32... Qd8 {[%clk 0:00:44]} 33. Ne1 {[%clk 0:01:04.9]}
33... Qh4 {[%clk 0:00:37.9]} 34. Nef3 {[%clk 0:01:03.5]} 34... Qh3 {[%clk
0:00:12.6]} 35. Qxh3 {[%clk 0:00:48.8]} 35... Bxh3 {[%clk 0:00:13.5]} 36. Rc2
{[%clk 0:00:48.8]} 36... Bg7 {[%clk 0:00:12.7]} 37. Re1 {[%clk 0:00:47.5]} 37...
Re7 {[%clk 0:00:12.1]} 38. Ng1 {[%clk 0:00:47.3]} 38... Bg4 {[%clk 0:00:11.8]}
39. h3 {[%clk 0:00:46.6]} 39... Bd7 {[%clk 0:00:09.1]} 40. Kg2 {[%clk 0:00:46]}
40... Rae8 {[%clk 0:00:09.1]} 41. Nc6 {[%clk 0:00:44.5]} 41... Bxc6 {[%clk
0:00:09.2]} 42. bxc6 {[%clk 0:00:45.4]} 42... Nc5 {[%clk 0:00:08.9]} 43. Bxg7
{[%clk 0:00:41.9]} 43... Kxg7 {[%clk 0:00:09.8]} 44. Kf3 {[%clk 0:00:42.1]}
44... Nxa4 {[%clk 0:00:09.6]} 45. h4 {[%clk 0:00:40.5]} 45... Nc5 {[%clk
0:00:09.6]} 46. Nh3 {[%clk 0:00:40.1]} 46... a4 {[%clk 0:00:07.8]} 47. Nf4
{[%clk 0:00:39]} 47... Re4 {[%clk 0:00:07.5]} 48. Rc3 {[%clk 0:00:38.2]} 48...
Ra8 {[%clk 0:00:07.7]} 49. Ra1 {[%clk 0:00:37.5]} 49... Ra5 {[%clk 0:00:06.2]}
50. Ra2 {[%clk 0:00:36.1]} 50... Re8 {[%clk 0:00:06.1]} 51. Raa3 {[%clk
0:00:34.7]} 51... f6 {[%clk 0:00:05.5]} 52. Rc2 {[%clk 0:00:33.1]} 52... Kh6
{[%clk 0:00:05.7]} 53. Rh2 {[%clk 0:00:31.7]} 53... g5 {[%clk 0:00:06.2]} 54.
hxg5+ {[%clk 0:00:31]} 54... fxg5 {[%clk 0:00:06]} 55. Rxh5+ {[%clk 0:00:31.9]}
55... Kg7 {[%clk 0:00:05.7]} 56. Rxg5+ {[%clk 0:00:32.8]} 56... Kf6 {[%clk
0:00:05.5]} 57. Rg6+ {[%clk 0:00:32.6]} 57... Kf7 {[%clk 0:00:05.6]} 58. Rh6
{[%clk 0:00:33.1]} 58... Kg7 {[%clk 0:00:05]} 59. Rh2 {[%clk 0:00:32.2]} 59...
Rh8 {[%clk 0:00:04.4]} 60. Rxh8 {[%clk 0:00:29.3]} 60... Kxh8 {[%clk 0:00:05.3]}
61. Ne2 {[%clk 0:00:24.9]} 61... Kg7 {[%clk 0:00:05.1]} 62. Nd4 {[%clk 0:00:24]}
62... Ra8 {[%clk 0:00:04.6]} 63. Nb5 {[%clk 0:00:23.7]} 63... Rc8 {[%clk
0:00:04.7]} 64. e4 {[%clk 0:00:22.4]} 64... Kf6 {[%clk 0:00:05]} 65. Kf4 {[%clk
0:00:22]} 65... Ke7 {[%clk 0:00:05.2]} 66. Rh3 {[%clk 0:00:19.9]} 66... Rf8+
{[%clk 0:00:05.4]} 67. Ke3 {[%clk 0:00:20]} 67... Kd8 {[%clk 0:00:05.5]} 68. Rh7
{[%clk 0:00:13.7]} 68... Re8 {[%clk 0:00:05.8]} 69. Rxc7 {[%clk 0:00:12.2]}
69... Rxe4+ {[%clk 0:00:05.8]} 70. Kf3 {[%clk 0:00:13.1]} 70... Rxc4 {[%clk
0:00:04.6]} 71. Ra7 {[%clk 0:00:13.7]} 71... Nd3 {[%clk 0:00:02.6]} 72. c7+
{[%clk 0:00:12.5]} 1-0